Workbook

Sheet Table rentabilité
B2: ETUDE RENTABILITE SOLUTIONS USAGE PRODUCTIF
B3: Menuiserie Métallique
B5: Dimmensionnement réel
B6: Dimmensionnement optimisé
B7: Dimmensionnement réel
B10: Cases à vérifier
B11: Cases à compléter
B12: Cases à laisser vides
B13: Cases calculées
B15: Caractéristiques techniques du Projet
B17: Usage Productif | C17: Rendement (kg/heure) | D17: Puissance (kW) | F17: Prix (FCFA) | G17: Energie consommée (KWh/j) | H17: Energie à produire (kWh/j) | I17: Fonctionnement optimal | K17: Coefficient déperdition (k)
D18: Projet | E18: Nominale | I18: heures par jour | J18: jours à l'année
B19: Poste de soudure | E19: 2 | F19: 250000 | G19: =E19*I19 -> 6 | H19: =G19/K19 -> 7.5 | I19: 3 | J19: 365 | K19: 0.8
B20: Meule | E20: 1 | F20: 40000 | G20: =E20*I20 -> 6 | H20: =G20/K20 -> 7.5 | I20: 6 | K20: 0.8
B21: Perceuse | E21: 1 | F21: =100000 -> 100000 | G21: 6 | H21: =G21/K21 -> 7.5 | I21: 6 | K21: 0.8
I22: 6
B25: Equipements facultatifs
B26: designation | C26: nombre | D26: prix
B27: Installation atelier | C27: 1 | D27: 1500000
B28: Construction Bureau | C28: 1 | D28: 500000
B29: Construction magasin de vente de pièces détaillées dans l'atelier | C29: 1 | D29: 1500000
B30: Plat pour moteur | C30: 1 | D30: 160000
B31: Etau | C31: 1 | D31: 40000
B32: Accessoires | C32: 1 | D32: 2618801
B35: Alimentation Solaire | C35: Puissance (kW) | D35: Prix (FCFA) | E35: Coefficient déperdition | F35: Tension (V) | H35: Batteries | I35: Capacité (Ampères/h) | J35: Prix (FCFA) | K35: Tension (V) | L35: Durée de vie* | M35: * en conditions optimales, annoncées constructeur
B36: Panneaux solaires de 375 W | C36: 0.375 | D36: 97987 | E36: 0.6 | F36: 24V | H36: Batteries de 12 V/185 Ah | I36: 185 | J36: 433902 | K36: 12 | L36: 10
B37: BlueSolar SPM-300-24 Monocristallin | C37: 0.3 | D37: 100000 | E37: 0.6 | F37: 24V | H37: Victron Energy Gel 2 | I37: 265 | K37: 12 | L37: 10
H38: Tension nécessaire système | I38: =IF(J38<0.5,12,IF(AND(J38>=0.5,J38<2),24,IF(J38>=2,48))) -> 48 | J38: =F84*INDEX(C:C,MATCH(F62,B:B,0)) -> 4.125
B40: Onduleur | C40: kVa | D40: Prix (FCFA) | H40: Régulateur | I40: Courant (A) | J40: Prix (FCFA) | K40: Tension (V)
B41: Onduleur chargeur Victron QUATTRO | C41: 2 | D41: 2116221 | H41: BlueSolar 150V 35A de Victron Energy | I41: 35 | J41: 220000 | K41: 12V/24V/48V
B42: Victron quatro 5 kW | C42: 5 | D42: 1426500 | H42: Régulateur de charge Smartsolar Victron MPPT 250/100 | I42: 100 | J42: 400000 | K42: 12V/24V/48V
B44: Irradiation Solaire
B45: Month | C45: Jan | D45: Feb | E45: Mar | F45: Apr | G45: May | H45: Jun | I45: Jul | J45: Aug | K45: Sep | L45: Oct | M45: Nov | N45: Dec | O45: Year
B46: H(15)* | C46: 5.12 | D46: 5.75 | E46: 6.37 | F46: 6.61 | G46: 6.34 | H46: 6.05 | I46: 6.26 | J46: 5.51 | K46: 6.03 | L46: 5.81 | M46: 5.226 | N46: 5.03 | O46: =IF('Table rentabilité'!G72="x",MAX(C46:N46),IF('Table rentabilité'!G73="x",MIN(C46:N46),IF('Table rentabilité'!G74="x",AVERAGE(C46:N46),"erreur"))) -> 5.842166667
B48: Électricité du réseau | D48: 1ère Tranche | E48: 2ème Tranche | F48: 3ème Tranche | J48: 1ère Tranche | K48: 2ème Tranche | L48: 3ème Tranche | M48: Total
B49: UP-Petite Puissance | C49: Tranche (KWh) | D49: 50 | E49: 500 | F49: ∞ | H49: UP-Petite Puissance | I49: Energie par Tranche | J49: =(F77*30)-SUM(K49:L49) -> 50 | K49: =IF((F77*30)>D49,(F77*30)-D49-L49,0) -> 450 | L49: =IF((F77*30)>E49,(F77*30)-E49,0) -> 40 | M49: =SUM(J49:L49) -> 540
C50: Prix (KWh) | D50: 128.85 | E50: 135.68 | F50: 147.68 | I50: Coût (FCFA) | J50: =J49*D50 -> 6442.5 | K50: =K49*E50 -> 61056 | L50: =L49*F50 -> 5907.2 | M50: =SUM(J50:L50) -> 73405.7
B51: UP-Moyenne Puissance | C51: Tranche | D51: 100 | E51: 500 | F51: ∞ | H51: UP-Moyenne Puissance | I51: Energie par Tranche | J51: =(F77*30)-SUM(K51:L51) -> 100 | K51: =IF((F77*30)>D51,(F77*30)-D51-L51,0) -> 400 | L51: =IF((F77*30)>E51,(F77*30)-E51,0) -> 40 | M51: 540
C52: Prix (KWh) | D52: 129.81 | E52: 136.53 | F52: 149.24 | I52: Coût (FCFA) | J52: =J51*D52 -> 12981 | K52: =K51*E52 -> 54612 | L52: 5969.6 | M52: 73562.6
B54: Choix de dimensionnement du projet
B56: Production min. equipements (Nb equip/jour) | F56: =INDEX(C:C,MATCH($F$61,B:B,0))*INDEX(I:I,MATCH($F$61,B:B,0)) -> 0
B57: Temps de fonctionnement (heures/jour) | F57: 9
B59: Choix du poste | F59: Poste de soudure
B60: Choix du meule | F60: Meule
B61: Choix de la perceuse | F61: Perceuse
B62: Choix de l'alimentation solaire | F62: Panneaux solaires de 375 W
B63: Choix du système de stokage | F63: Batteries de 12 V/185 Ah
B64: Choix de l'onduleur | F64: Onduleur chargeur Victron QUATTRO
B65: Choix du régulateur | F65: Régulateur de charge Smartsolar Victron MPPT 250/100
B66: Choix décortiqueuse solaire
B67: Equivalent Réseau | F67: =IF(M50<M52,B49,B51) -> UP-Petite Puissance
B69: Autonomie nécessaires au projet (jours) | F69: 1
B70: Profondeur décharge batteries | F70: 0.8
B72: Choix du cas pour dimensionnement solaire | F72: best case
F73: worst case
F74: average | G74: x
B76: puissance equipement total majoré | F76: =SUM(E19:E21)*1.2 -> 4.8
B77: Energie journalière consommée (KWh) | F77: =G19+G20+G21+G22 -> 18 | G77: KWh
B78: Puissance crête projet (KW) | F78: =(INDEX(H:H,MATCH(F61,B:B,0))+INDEX(H:H,MATCH(F61,B:B,0))+INDEX(H:H,MATCH(F61,B:B,0)))/O46 -> 3.851310872
B79: Capacité totale système stockage (Ampères/heure) | F79: =(((G19+G20+G21)*1000)*(F69))/(F70*I38) -> 468.75
B81: Nombre de poste | F81: 1 | G81: unités
B82: Nombre de meule | F82: 1
B83: Nombre de perceuse | F83: 1 | G83: unités
B84: Nb de panneaux solaires | F84: =ROUNDUP(F78/INDEX(C:C,MATCH(F62,B:B,0)),0) -> 11 | G84: unités
B85: Nb de batteries en série | F85: =ROUNDUP(I38/INDEX(K:K,MATCH(F63,H:H,0)),0) -> 4 | G85: unités
B86: Nb de batteries en dérivation | F86: =ROUNDUP(F79/INDEX(I:I,MATCH(F63,H:H,0)),0) -> 3 | G86: unités
B87: Nb de batteries total | F87: =F85*F86 -> 12 | G87: unités
B88: Durée de vie attendue de la batterie | F88: =INDEX(L:L,MATCH(F63,H:H,0))*(130%-F70) -> 5 | G88: ans
B89: Nb régulateurs | F89: =IF(OR(I38=24,I38=12),1,2) -> 2 | G89: unités
B90: Nb onduleurs | F90: 1 | G90: unités
B92: Ratio de fonctionnement | F92: 0.9
B93: Employés nécessaires pour fonctionnement | F93: 10 | G93: personnes
B97: Calcul de charges variables et fixes
B99: RECETTES D'EXPLOITATION
B100: Désignation | C100: Quantité annuelle | E100: Prix unitaire | F100: Montant total/an | G100: Montant total/mois | I100: évolution annuelle charges d'exploitation | L100: 0.01
B101: Entretien charrue | C101: =30 -> 30 | E101: =20000 -> 20000 | F101: =E101*C101 -> 600000 | G101: =F101/12 -> 50000 | L101: 0
B102: Révision moteur | C102: =12 -> 12 | E102: =150000 -> 150000 | F102: =E102*C102 -> 1800000 | G102: =F102/12 -> 150000
B103: Entretien système hydraulique | C103: =10 -> 10 | E103: =60000 -> 60000 | F103: 600000 | G103: 50000
B104: Vente de pièces détachées | C104: =12 -> 12 | E104: =400000 -> 400000 | F104: 4800000 | G104: 400000
B105: Autres réparations | C105: =12 -> 12 | E105: =300000 -> 300000 | F105: 3600000 | G105: 300000
B106: Soudure entretien charrue | C106: =C101 -> 30 | E106: =10000 -> 10000 | F106: 300000 | G106: 25000
B107: Soudure révision moteur | C107: =C102 -> 12 | E107: =10000 -> 10000 | F107: 120000 | G107: 10000
B108: Soudure entretien système hydraulique | C108: =C103 -> 10 | E108: =10000 -> 10000 | F108: 100000 | G108: 8333.333333
B109: Soudure autres réparations | C109: =C105 -> 12 | E109: =10000 -> 10000 | F109: 120000 | G109: 10000
B110: Ventes machines | F110: =E110*C110 -> 0 | G110: 0 | I110: Avantage coût électricité PV vs. Réseau | K110: Sur 1 an | L110: =(MIN(M50,M52)*12)-SUM(G124:G127) -> 100630
F111: 0 | G111: 0
B112: TOTAL (F CFA) | F112: =SUM(F101:F111) -> 12040000 | G112: =SUM(G101:G111) -> 1003333.333 | K112: Sur 5 ans | L112: =(MIN(M50,M52)*12*5)-(SUM(G124:G127)*5) -> 503150
K113: Sur 9 ans | L113: =(MIN(M50,M52)*12*9)-(SUM(G124:G127)*9) -> 905670
B114: INVESTISSEMENTS
B115: Désignation | C115: Quantité | D115: Prix unitaire TTC | E115: Durée de vie (an) | F115: Montant Total TTC | G115: Amortissement annuel
B116: Installation atelier | C116: =IF($B$5=INDEX($B$6:$B$7,1,1),C27,'investissement réel'!C4) -> 1 | D116: =IF($B$5=INDEX($B$6:$B$7,1,1),D27,'investissement réel'!D4) -> 1500000 | E116: 20 | F116: =C116*D116 -> 1500000 | G116: =IFERROR(F116/E116,0) -> 75000
B117: Construction Bureau | C117: =IF($B$5=INDEX($B$6:$B$7,1,1),C28,'investissement réel'!C5) -> 1 | D117: =IF($B$5=INDEX($B$6:$B$7,1,1),D28,'investissement réel'!D5) -> 500000 | E117: 20 | F117: =C117*D117 -> 500000 | G117: 25000
B118: Construction magasin de vente de pièces détaillées dans l'atelier | C118: =IF($B$5=INDEX($B$6:$B$7,1,1),C29,'investissement réel'!C6) -> 1 | D118: =IF($B$5=INDEX($B$6:$B$7,1,1),D29,'investissement réel'!D6) -> 1500000 | E118: 20 | F118: =C118*D118 -> 1500000 | G118: =IFERROR(F118/E118,0) -> 75000
B119: Plat pour moteur | C119: =IF($B$5=INDEX($B$6:$B$7,1,1),C30,'investissement réel'!C7) -> 1 | D119: =IF($B$5=INDEX($B$6:$B$7,1,1),D30,'investissement réel'!D7) -> 160000 | E119: 15 | F119: =C119*D119 -> 160000 | G119: =IFERROR(F119/E119,0) -> 10666.66667
B120: Etau | C120: =IF($B$5=INDEX($B$6:$B$7,1,1),C31,'investissement réel'!C8) -> 1 | D120: =IF($B$5=INDEX($B$6:$B$7,1,1),D31,'investissement réel'!D8) -> 40000 | E120: 10 | F120: =C120*D120 -> 40000 | G120: =IFERROR(F120/E120,0) -> 4000
B121: Poste de soudure | C121: =IF($B$5=INDEX($B$6:$B$7,1,1),F81,'investissement réel'!C9) -> 1 | D121: =IF($B$5=INDEX($B$6:$B$7,1,1),F19,'investissement réel'!D9) -> 250000 | E121: 10 | F121: 250000 | G121: 25000
B122: Meule | C122: =IF($B$5=INDEX($B$6:$B$7,1,1),F82,'investissement réel'!C10) -> 1 | D122: =IF($B$5=INDEX($B$6:$B$7,1,1),F20,'investissement réel'!D10) -> 40000 | E122: 10 | F122: 40000 | G122: 4000
B123: Perceuse | C123: =IF($B$5=INDEX($B$6:$B$7,1,1),F83,'investissement réel'!C11) -> 1 | D123: =IF($B$5=INDEX($B$6:$B$7,1,1),F21,'investissement réel'!D11) -> 100000 | E123: 10 | F123: 100000 | G123: 10000
B124: Panneaux | C124: =IF($B$5=INDEX($B$6:$B$7,1,1),F84,'investissement réel'!C12) -> 1 | D124: =IF($B$5=INDEX($B$6:$B$7,1,1),INDEX(D:D,MATCH(F62,B:B,0)),'investissement réel'!D12) -> 1175844 | E124: 20 | F124: 1175844 | G124: 58792.2
B125: Batteries | C125: =IF($B$5=INDEX($B$6:$B$7,1,1),F87,'investissement réel'!C13) -> 1 | D125: =IF($B$5=INDEX($B$6:$B$7,1,1),INDEX(J:J,MATCH(F63,H:H,0)),'investissement réel'!D13) -> 1735608 | E125: 7 | F125: 1735608 | G125: 247944
B126: Onduleur | C126: =IF($B$5=INDEX($B$6:$B$7,1,1),F90,'investissement réel'!C14) -> 1 | D126: =D41 -> 2116221 | E126: 10 | F126: 2116221 | G126: 211622.1
B127: Accessoires | C127: =IF($B$5=INDEX($B$6:$B$7,1,1),C32,'investissement réel'!C15) -> 1 | D127: =IF($B$5=INDEX($B$6:$B$7,1,1),D32,'investissement réel'!D15) -> 2618801 | E127: 10 | F127: 2618801 | G127: 261880.1
B128: TOTAL (F CFA) | F128: =SUM(F116:F127) -> 11736474 | G128: =SUM(G116:G127) -> 1008905.067 | H128: =G128/12 -> 84075.42222
B130: Calcul des recettes d'exploitation
B132: CHARGES VARIABLES D'EXPLOITATION
B133: Désignation | C133: Quantité | E133: Prix unitaire | F133: charges annuelles | G133: charges mensuelles | K133: 0.01
B134: Salaire | C134: 1 | E134: 2520000 | F134: =C134*E134 -> 2520000 | G134: =F134/12 -> 210000
B135: Achat matiere premiere | C135: 12 | E135: 250000 | F135: =C135*E135 -> 3000000 | G135: =F135/12 -> 250000
B136: Maintenance | C136: 12 | E136: 19116 | F136: =C136*E136 -> 229392 | G136: 19116
B137: location magazin, restauration | C137: 12 | E137: 230000 | F137: =C137*E137 -> 2760000 | G137: 230000
B138: TOTAL (F CFA) | F138: =SUM(F134:F137) -> 8509392 | G138: =SUM(G134:G137) -> 709116
B140: Ressources et Financement des investissements
B142: BFR (Besoin en fonds de roulement)
B143: Type de tiers | C143: Client/fournisseur | D143: Délais de paiement / stocks (jours) | E143: Part des achats/ventes
B152: Créances clients | C152: =((D147*F138/365*E147)+(D148*F138/365*E148)) -> 0
B153: Crédit fournisseurs | C153: =((D144*F112*E144/365)+(D145*F112*E145/365)+(D146*F112*E146/365))*-1 -> 0
B154: Impact Stocks consommable | C154: =F101*D149/365 -> 0
B155: Impact Stocks produits finis | C155: =F134*D150/365 -> 0
B156: BFR | C156: =SUM(C152:C155) -> 0 | D156: F CFA
B159: SCHÉMA DE FINANCEMENT | F159: ECHEANCIER DE REMBOURSEMENT
B160: Désignation | C160: Part | D160: Montant total TTC | F160: Année | G160: Capital | H160: Intérêts | I160: Reste | J160: Annuité | K160: mensualité
B161: Investissements | D161: =F128 -> 11736474 | F161: =IF(D168>10,"nb an insuffisant",IF(D168>=1,1,"-")) -> 1 | G161: =SUMIFS('Remboursement Mensualités'!C$14:C$133,'Remboursement Mensualités'!$F$14:$F$133,'Table rentabilité'!$F161) -> 1681507.107 | H161: =SUMIFS('Remboursement Mensualités'!D$14:D$133,'Remboursement Mensualités'!$F$14:$F$133,'Table rentabilité'!$F161) -> 829117.4211 | I161: =SUMIFS('Remboursement Mensualités'!E$14:E$133,'Remboursement Mensualités'!$F$14:$F$133,'Table rentabilité'!$F161) -> 85697090.66 | J161: =SUMIFS('Remboursement Mensualités'!B$14:B$133,'Remboursement Mensualités'!$F$14:$F$133,'Table rentabilité'!$F161) -> 2510624.528 | K161: =J161/12 -> 209218.7107
B162: Besoin en fonds de roulement | D162: =C156 -> 0 | F162: =IF(D168>10,"nb an insuffisant",IF(D168>=2,2,"-")) -> 2 | G162: =SUMIFS('Remboursement Mensualités'!C$14:C$133,'Remboursement Mensualités'!$F$14:$F$133,'Table rentabilité'!$F162) -> 1883287.96 | H162: =SUMIFS('Remboursement Mensualités'!D$14:D$133,'Remboursement Mensualités'!$F$14:$F$133,'Table rentabilité'!$F162) -> 627336.5683 | I162: =SUMIFS('Remboursement Mensualités'!E$14:E$133,'Remboursement Mensualités'!$F$14:$F$133,'Table rentabilité'!$F162) -> 64230133.69 | J162: =SUMIFS('Remboursement Mensualités'!B$14:B$133,'Remboursement Mensualités'!$F$14:$F$133,'Table rentabilité'!$F162) -> 2510624.528 | K162: =J162/12 -> 209218.7107
B163: COÛT TOTAL (F CFA) | D163: =SUM(D161:D162) -> 11736474 | F163: =IF(D168>10,"nb an insuffisant",IF(D168>=3,3,"-")) -> 3 | G163: =SUMIFS('Remboursement Mensualités'!C$14:C$133,'Remboursement Mensualités'!$F$14:$F$133,'Table rentabilité'!$F163) -> 2109282.515 | H163: =SUMIFS('Remboursement Mensualités'!D$14:D$133,'Remboursement Mensualités'!$F$14:$F$133,'Table rentabilité'!$F163) -> 401342.0131 | I163: =SUMIFS('Remboursement Mensualités'!E$14:E$133,'Remboursement Mensualités'!$F$14:$F$133,'Table rentabilité'!$F163) -> 40187141.89 | J163: =SUMIFS('Remboursement Mensualités'!B$14:B$133,'Remboursement Mensualités'!$F$14:$F$133,'Table rentabilité'!$F163) -> 2510624.528 | K163: 209218.7107
B164: Apport personnel | C164: =D164/D163 -> 0.3152565242 | D164: =SUM(F116:F120) -> 3700000 | F164: =IF(D168>10,"nb an insuffisant",IF(D168>=4,4,"-")) -> 4 | G164: =SUMIFS('Remboursement Mensualités'!C$14:C$133,'Remboursement Mensualités'!$F$14:$F$133,'Table rentabilité'!$F164) -> 2362396.417 | H164: =SUMIFS('Remboursement Mensualités'!D$14:D$133,'Remboursement Mensualités'!$F$14:$F$133,'Table rentabilité'!$F164) -> 148228.1112 | I164: =SUMIFS('Remboursement Mensualités'!E$14:E$133,'Remboursement Mensualités'!$F$14:$F$133,'Table rentabilité'!$F164) -> 13258991.07 | J164: =SUMIFS('Remboursement Mensualités'!B$14:B$133,'Remboursement Mensualités'!$F$14:$F$133,'Table rentabilité'!$F164) -> 2510624.528 | K164: 209218.7107
B165: Subvention | C165: 0 | D165: =C165*D163 -> 0 | F165: =IF(D168>10,"nb an insuffisant",IF(D168>=5,5,"-")) -> - | G165: =SUMIFS('Remboursement Mensualités'!C$14:C$133,'Remboursement Mensualités'!$F$14:$F$133,'Table rentabilité'!$F165) -> 0 | H165: =SUMIFS('Remboursement Mensualités'!D$14:D$133,'Remboursement Mensualités'!$F$14:$F$133,'Table rentabilité'!$F165) -> 0 | I165: =SUMIFS('Remboursement Mensualités'!E$14:E$133,'Remboursement Mensualités'!$F$14:$F$133,'Table rentabilité'!$F165) -> 0 | J165: =SUMIFS('Remboursement Mensualités'!B$14:B$133,'Remboursement Mensualités'!$F$14:$F$133,'Table rentabilité'!$F165) -> 0 | K165: 0
B166: Emprunt | C166: =100%-(C165+C164) -> 0.6847434758 | D166: =D163*C166 -> 8036474 | F166: =IF(D168>10,"nb an insuffisant",IF(D168>=6,6,"-")) -> - | G166: =SUMIFS('Remboursement Mensualités'!C$14:C$133,'Remboursement Mensualités'!$F$14:$F$133,'Table rentabilité'!$F166) -> 0 | H166: =SUMIFS('Remboursement Mensualités'!D$14:D$133,'Remboursement Mensualités'!$F$14:$F$133,'Table rentabilité'!$F166) -> 0 | I166: =SUMIFS('Remboursement Mensualités'!E$14:E$133,'Remboursement Mensualités'!$F$14:$F$133,'Table rentabilité'!$F166) -> 0 | J166: =SUMIFS('Remboursement Mensualités'!B$14:B$133,'Remboursement Mensualités'!$F$14:$F$133,'Table rentabilité'!$F166) -> 0 | K166: =SUMIFS('Remboursement Mensualités'!C$14:C$133,'Remboursement Mensualités'!$F$14:$F$133,'Table rentabilité'!$F166) -> 0
B167: Taux de l'emprunt | D167: 0.12 | F167: =IF(D168>10,"nb an insuffisant",IF(D168>=7,7,"-")) -> - | G167: =SUMIFS('Remboursement Mensualités'!C$14:C$133,'Remboursement Mensualités'!$F$14:$F$133,'Table rentabilité'!$F167) -> 0 | H167: =SUMIFS('Remboursement Mensualités'!D$14:D$133,'Remboursement Mensualités'!$F$14:$F$133,'Table rentabilité'!$F167) -> 0 | I167: =SUMIFS('Remboursement Mensualités'!E$14:E$133,'Remboursement Mensualités'!$F$14:$F$133,'Table rentabilité'!$F167) -> 0 | J167: =SUMIFS('Remboursement Mensualités'!B$14:B$133,'Remboursement Mensualités'!$F$14:$F$133,'Table rentabilité'!$F167) -> 0 | K167: =SUMIFS('Remboursement Mensualités'!C$14:C$133,'Remboursement Mensualités'!$F$14:$F$133,'Table rentabilité'!$F167) -> 0
B168: Remboursement de l'emprunt (années) | D168: 4 | F168: =IF(D168>10,"nb an insuffisant",IF(D168>=8,8,"-")) -> - | G168: =SUMIFS('Remboursement Mensualités'!C$14:C$133,'Remboursement Mensualités'!$F$14:$F$133,'Table rentabilité'!$F168) -> 0 | H168: =SUMIFS('Remboursement Mensualités'!D$14:D$133,'Remboursement Mensualités'!$F$14:$F$133,'Table rentabilité'!$F168) -> 0 | I168: =SUMIFS('Remboursement Mensualités'!E$14:E$133,'Remboursement Mensualités'!$F$14:$F$133,'Table rentabilité'!$F168) -> 0 | J168: =SUMIFS('Remboursement Mensualités'!B$14:B$133,'Remboursement Mensualités'!$F$14:$F$133,'Table rentabilité'!$F168) -> 0 | K168: =SUMIFS('Remboursement Mensualités'!C$14:C$133,'Remboursement Mensualités'!$F$14:$F$133,'Table rentabilité'!$F168) -> 0
F169: =IF(D168>10,"nb an insuffisant",IF(D168>=9,9,"-")) -> - | G169: =SUMIFS('Remboursement Mensualités'!C$14:C$133,'Remboursement Mensualités'!$F$14:$F$133,'Table rentabilité'!$F169) -> 0 | H169: =SUMIFS('Remboursement Mensualités'!D$14:D$133,'Remboursement Mensualités'!$F$14:$F$133,'Table rentabilité'!$F169) -> 0 | I169: =SUMIFS('Remboursement Mensualités'!E$14:E$133,'Remboursement Mensualités'!$F$14:$F$133,'Table rentabilité'!$F169) -> 0 | J169: =SUMIFS('Remboursement Mensualités'!B$14:B$133,'Remboursement Mensualités'!$F$14:$F$133,'Table rentabilité'!$F169) -> 0 | K169: =SUMIFS('Remboursement Mensualités'!C$14:C$133,'Remboursement Mensualités'!$F$14:$F$133,'Table rentabilité'!$F169) -> 0
F170: =IF(D168>10,"nb an insuffisant",IF(D168>=10,"Année 10","-")) -> - | G170: =SUMIFS('Remboursement Mensualités'!C$14:C$133,'Remboursement Mensualités'!$F$14:$F$133,'Table rentabilité'!$F170) -> 0 | H170: =SUMIFS('Remboursement Mensualités'!D$14:D$133,'Remboursement Mensualités'!$F$14:$F$133,'Table rentabilité'!$F170) -> 0 | I170: =SUMIFS('Remboursement Mensualités'!E$14:E$133,'Remboursement Mensualités'!$F$14:$F$133,'Table rentabilité'!$F170) -> 0 | J170: =SUMIFS('Remboursement Mensualités'!B$14:B$133,'Remboursement Mensualités'!$F$14:$F$133,'Table rentabilité'!$F170) -> 0 | K170: =SUMIFS('Remboursement Mensualités'!C$14:C$133,'Remboursement Mensualités'!$F$14:$F$133,'Table rentabilité'!$F170) -> 0
F171: TOTAL | G171: =SUM(G161:G170) -> 8036474 | H171: =SUM(H161:H170) -> 2006024.114 | I171: =SUM(I161:I170) -> 203373357.3 | J171: =SUM(J161:J170) -> 10042498.11 | K171: =SUM(K161:K170) -> 836874.8428
B174: Ressources et Financement des investissements
B176: RESULTAT BRUT D'EXPLOITATION (EBE)
B177: Désignation / Durée (années) | C177: 0 | D177: 1 | E177: 2 | F177: 3 | G177: 4 | H177: 5 | I177: 6 | J177: 7 | K177: 8 | L177: 9 | M177: Total
B178: Recettes | C178: =D164+D166 -> 11736474 | D178: =F112 -> 12040000 | E178: =D178+($K$133*D178) -> 12160400 | F178: =E178+($K$133*E178) -> 12282004 | G178: =F178+($K$133*F178) -> 12404824.04 | H178: 12528872.28 | I178: 12654161 | J178: 12780702.61 | K178: 12908509.64 | L178: 13037594.74 | M178: =SUM(C178:L178) -> 124533542.3
B179: Dépenses | C179: =D161 -> 11736474 | D179: =F138 -> 8509392 | E179: =D179+(D179*$L$100) -> 8594485.92 | F179: =E179+(E179*$L$100) -> 8680430.779 | G179: =F179+(F179*$L$100) -> 8767235.087 | H179: 8854907.438 | I179: 8943456.512 | J179: 9032891.077 | K179: 9123219.988 | L179: 9214452.188 | M179: =SUM(C179:L179) -> 91456944.99
B180: Amortissements | C180: 0 | D180: =$G$128 -> 1008905.067 | E180: =$G$128 -> 1008905.067 | F180: 1008905.067 | G180: 1008905.067 | H180: 1008905.067 | I180: 1008905.067 | J180: 1008905.067 | K180: 1008905.067 | L180: 1008905.067 | M180: 9080145.6
B181: Remboursement emprunt | C181: 0 | D181: =IFERROR(INDEX($J$161:$J$170,MATCH(D177,$F$161:$F$170,0)),0) -> 2510624.528 | E181: =IFERROR(INDEX($J$161:$J$170,MATCH(E177,$F$161:$F$170,0)),0) -> 2510624.528 | F181: 2510624.528 | G181: 2510624.528 | H181: 0 | I181: 0 | J181: 0 | K181: 0 | L181: 0 | M181: 10042498.11
B182: Bénéfice avant impôts | C182: 0 | D182: =D178-SUM(D179:D181) -> 11078.40491 | E182: =E178-SUM(E179:E181) -> 46384.48491 | F182: 82043.62571 | G182: 118059.3579 | H182: 2665059.776 | I182: 2701799.424 | J182: 2738906.469 | K182: 2776384.585 | L182: 2814237.481 | M182: 13953953.61
B183: Impôts sur le bénéfice | C183: 0 | D183: =IF(D182<0,0,0.3*D182) -> 3323.521474 | E183: =IF(E182<0,0,0.3*E182) -> 13915.34547 | F183: 24613.08771 | G183: 35417.80738 | H183: 799517.9328 | I183: 810539.8273 | J183: 821671.9408 | K183: 832915.3754 | L183: 844271.2443 | M183: 4186186.083
B184: Bénéfice après impôts | C184: 0 | D184: =D182-D183 -> 7754.88344 | E184: =E182-E183 -> 32469.13944 | F184: 57430.538 | G184: 82641.55055 | H184: 1865541.843 | I184: 1891259.597 | J184: 1917234.528 | K184: 1943469.209 | L184: 1969966.237 | M184: 9767767.526
B185: Trésorerie | C185: =C178-C179 -> 0 | D185: =C185+D184 -> 7754.88344 | E185: 40224.02288 | F185: =E185+F184 -> 97654.56088 | G185: 180296.1114 | H185: 2045837.955 | I185: 3937097.552 | J185: 5854332.08 | K185: 7797801.289 | L185: 9767767.526 | M185: 29728765.98
B186: Cash Flows | C186: 0 | D186: =D184+D181-($H$171/$D$168) -> 2016873.383 | E186: 2041587.639 | F186: 2066549.038 | G186: 2091760.051 | H186: 1364035.815 | I186: 1389753.569 | J186: 1415728.5 | K186: 1441963.181 | L186: 1468460.208 | M186: 15296711.38
B187: Cash Flows cumulés | C187: =-C179 -> -11736474 | D187: =C187+D186 -> -9719600.617 | E187: =D187+E186 -> -7678012.977 | F187: =E187+F186 -> -5611463.939 | G187: -3519703.889 | H187: -2155668.074 | I187: -765914.5053 | J187: 649813.9947 | K187: 2091777.176 | L187: 3560237.384 | M187: -34885009.45
B190: Indicateurs économiques
B192: VAN | C192: =NPV(F192,IF(D177<=H192,D186,0),IF(E177<=H192,E186,0),IF(F177<=H192,F186,0),IF(G177<=H192,G186,0),IF(H177<=H192,H186,0),IF(I177<=H192,I186,0),IF(J177<=H192,J186,0),IF(K177<=H192,K186,0),IF(L177<=H192,L186,0))-D161 -> 576701.9535 | D192: FCFA | E192: Taux d'actualisation | F192: 0.05 | G192: Durée VAN (ans) | H192: 9 | N192: =-D161+IF(H192>=D177,(D184+D181-H171/D168)*((1+F192)^-1),0)+IF(H192>=E177,(E184+E181-H171/D168)*((1+F192)^-2),0)+IF(H192>=F177,(F184+F181-H171/D168)*((1+F192)^-3),0)+IF(H192>=G177,(G184+G181-H171/D168)*((1+F192)^-4),0)+IF(H192>=H177,(H184+H181-H171/D168)*((1+F192)^-5),0)+IF(H192>=I177,(I184+I181-H171/D168)*((1+F192)^-6),0)+IF(H192>=J177,(J184+J181-H171/D168)*((1+F192)^-7),0)+IF(H192>=K177,(K184+K181-H171/D168)*((1+F192)^-8),0)+IF(H192>=L177,(L184+L181-H171/D168)*((1+F192)^-9),0) -> 576701.9535 | O192: calcul VAN
B193: TRI | C193: =IRR(N193:W193) -> 0.06191252775 | N193: =-D161 -> -11736474 | O193: =IF(D177<=H192,D186,0) -> 2016873.383 | P193: =IF(E177<=H192,E186,0) -> 2041587.639 | Q193: =IF(F177<=H192,F186,0) -> 2066549.038 | R193: =IF(G177<=H192,G186,0) -> 2091760.051 | S193: =IF(H177<=H192,H186,0) -> 1364035.815 | T193: =IF(I177<=H192,I186,0) -> 1389753.569 | U193: =IF(J177<=H192,J186,0) -> 1415728.5 | V193: =IF(K177<=H192,K186,0) -> 1441963.181 | W193: =IF(L177<=H192,L186,0) -> 1468460.208
B194: RSI | C194: =SUM(O193:W193)/D161 -> 1.303348125 | D194: ="Pour 1000 CFA investis, on récupère "&ROUND(N194,0)&" CFA" -> Pour 1000 CFA investis, on récupère 303 CFA | N194: =(C194-1)*1000 -> 303.3481252
B195: DRCI | C195: =N195+(-P195/(O195-P195)) -> 7 | D195: ="Le délai de récupération est de "&ROUNDDOWN(C195,0)&" ans et "&ROUNDDOWN((C195-ROUNDDOWN(C195,0))*12,0)&" mois" -> Le délai de récupération est de 7 ans et 0 mois | N195: =IF(AND(L187<0,L177<=H192),L177,IF(AND(K187<0,K177<=H192),K177,IF(AND(J187<0,J177<=H192),J177,IF(AND(I187<0,I177<=H192),I177,IF(AND(H187<0,H177<=H192),H177,IF(AND(G187<0,G177<=H192),G177,IF(AND(F187<0,F177<=H192),F177,IF(AND(E187<0,E177<=H192),E177,IF(AND(D187<0,D177<=H192),D177,IF(AND(C187<0,C177<=H192),C177)))))))))) -> 6 | P195: =IF(AND(L187<0,L177<=H192),L187,IF(AND(K187<0,K177<=H192),K187,IF(AND(J187<0,J177<=H192),J187,IF(AND(I187<0,I177<=H192),I187,IF(AND(H187<0,H177<=H192),H187,IF(AND(G187<0,G177<=H192),G187,IF(AND(F187<0,F177<=H192),F187,IF(AND(E187<0,E177<=H192),E187,IF(AND(D187<0,D177<=H192),D187,IF(AND(C187<0,C177<=H192),C187)))))))))) -> -765914.5053
B196: DSCR | C196: =(D178-D179)/(D181) -> 1.406266831

Sheet Remboursement Mensualités (hidden)
A1: Remboursement de prêt
A2: Taux annuel | B2: ='Table rentabilité'!D167 -> 0.12
A3: Capital emprunté | B3: ='Table rentabilité'!D166 -> 8036474
A4: Durée du prêt (en année) | B4: ='Table rentabilité'!D168 -> 4 | C4: =B4*12 -> 48
A5: Mensualité à régler | B5: =-PMT((1+B2)^(1/12)-1,B4*12,B3) -> 209218.7107 | C5: Formule mensualité | D5: =-VPM((1+B2)^(1/12)-1;B4*12;B3)
A7: Décomposition de la mensualité
A8: Remboursement du principal | B8: =-PPMT((1+B2)^(1/12)-1,1,B4*12,B3) -> 132962.273 | C8: Formule principal | D8: =-PRINCPER((1+B2)^(1/12)-1;1;B4*12;B3)
A9: Remboursement des interêts | B9: =-IPMT((1+B2)^(1/12)-1,1,B4*12,B3) -> 76256.43771 | C9: Formule intérêt | D9: =-INTPER((1+B2)^(1/12)-1;1;B4*12;B3)
A12: Dans les formules ci-dessous Taux de période = TP = (1+$B$2)^(1/12)-1
A13: Périodes | B13: Mensualité | C13: Capital | D13: Intérêts | E13: Reste (ou résiduel) | F13: Années
A14: =IF(B4<>0,1,"-") -> 1 | B14: =IF(A14<>"-",C14+D14,"") -> 209218.7107 | C14: =IF(A14<>"-",-PPMT((1+$B$2)^(1/12)-1,A14,$B$4*12,$B$3),"") -> 132962.273 | D14: =IF(A14<>"-",-IPMT((1+$B$2)^(1/12)-1,A14,$B$4*12,$B$3),"") -> 76256.43771 | E14: =IF(A14<>"-",$B$3+CUMPRINC((1+$B$2)^(1/12)-1,$B$4*12,$B$3,1,A14,0),"") -> 7903511.727 | F14: =IF(A14<>"-",1,"") -> 1 | G14: =IF(A14<>"-",1,"") -> 1
A15: =IF(AND($B$4<>0,A14<$C$4),A14+1,"-") -> 2 | B15: =IF(A15<>"-",C15+D15,"") -> 209218.7107 | C15: =IF(A15<>"-",-PPMT((1+$B$2)^(1/12)-1,A15,$B$4*12,$B$3),"") -> 134223.9245 | D15: =IF(A15<>"-",-IPMT((1+$B$2)^(1/12)-1,A15,$B$4*12,$B$3),"") -> 74994.78623 | E15: =IF(A15<>"-",$B$3+CUMPRINC((1+$B$2)^(1/12)-1,$B$4*12,$B$3,1,A15,0),"") -> 7769287.803 | F15: =IF(A15<>"-",IF(G14<G15,F14,F14+1),"") -> 1 | G15: =IF(A15="-","",IF(G14<12,G14+1,1)) -> 2
A16: =IF(AND($B$4<>0,A15<$C$4),A15+1,"-") -> 3 | B16: 209218.7107 | C16: 135497.5475 | D16: 73721.16321 | E16: 7633790.255 | F16: =IF(A16<>"-",IF(G15<G16,F15,F15+1),"") -> 1 | G16: =IF(A16="-","",IF(G15<12,G15+1,1)) -> 3
A17: 4 | B17: 209218.7107 | C17: 136783.2557 | D17: 72435.45504 | E17: 7497006.999 | F17: 1 | G17: 4
A18: 5 | B18: 209218.7107 | C18: 138081.1637 | D18: 71137.54705 | E18: 7358925.836 | F18: 1 | G18: 5
A19: 6 | B19: 209218.7107 | C19: 139391.3872 | D19: 69827.32348 | E19: 7219534.449 | F19: 1 | G19: 6
A20: 7 | B20: 209218.7107 | C20: 140714.0432 | D20: 68504.66747 | E20: 7078820.405 | F20: 1 | G20: 7
A21: 8 | B21: 209218.7107 | C21: 142049.2497 | D21: 67169.46105 | E21: 6936771.156 | F21: 1 | G21: 8
A22: 9 | B22: 209218.7107 | C22: 143397.1256 | D22: 65821.58513 | E22: 6793374.03 | F22: 1 | G22: 9
A23: 10 | B23: 209218.7107 | C23: 144757.7912 | D23: 64460.9195 | E23: 6648616.239 | F23: 1 | G23: 10
A24: 11 | B24: 209218.7107 | C24: 146131.3679 | D24: 63087.34279 | E24: 6502484.871 | F24: 1 | G24: 11
A25: 12 | B25: 209218.7107 | C25: 147517.9782 | D25: 61700.7325 | E25: 6354966.893 | F25: 1 | G25: 12
A26: 13 | B26: 209218.7107 | C26: 148917.7458 | D26: 60300.96495 | E26: 6206049.147 | F26: 2 | G26: 1
A27: 14 | B27: 209218.7107 | C27: 150330.7954 | D27: 58887.9153 | E27: 6055718.352 | F27: 2 | G27: 2
A28: 15 | B28: 209218.7107 | C28: 151757.2532 | D28: 57461.45751 | E28: 5903961.098 | F28: 2 | G28: 3
A29: 16 | B29: 209218.7107 | C29: 153197.2463 | D29: 56021.46436 | E29: 5750763.852 | F29: 2 | G29: 4
A30: 17 | B30: 209218.7107 | C30: 154650.9033 | D30: 54567.80741 | E30: 5596112.949 | F30: 2 | G30: 5
A31: 18 | B31: 209218.7107 | C31: 156118.3537 | D31: 53100.35701 | E31: 5439994.595 | F31: 2 | G31: 6
A32: 19 | B32: 209218.7107 | C32: 157599.7284 | D32: 51618.98228 | E32: 5282394.867 | F32: 2 | G32: 7
A33: 20 | B33: 209218.7107 | C33: 159095.1596 | D33: 50123.55109 | E33: 5123299.707 | F33: 2 | G33: 8
A34: 21 | B34: 209218.7107 | C34: 160604.7806 | D34: 48613.93006 | E34: 4962694.926 | F34: 2 | G34: 9
A35: 22 | B35: 209218.7107 | C35: 162128.7261 | D35: 47089.98455 | E35: 4800566.2 | F35: 2 | G35: 10
A36: 23 | B36: 209218.7107 | C36: 163667.1321 | D36: 45551.57864 | E36: 4636899.068 | F36: 2 | G36: 11
A37: 24 | B37: 209218.7107 | C37: 165220.1356 | D37: 43998.57512 | E37: 4471678.933 | F37: 2 | G37: 12
A38: 25 | B38: 209218.7107 | C38: 166787.8752 | D38: 42430.83546 | E38: 4304891.057 | F38: 3 | G38: 1
A39: 26 | B39: 209218.7107 | C39: 168370.4909 | D39: 40848.21985 | E39: 4136520.566 | F39: 3 | G39: 2
A40: 27 | B40: 209218.7107 | C40: 169968.1236 | D40: 39250.58713 | E40: 3966552.443 | F40: 3 | G40: 3
A41: 28 | B41: 209218.7107 | C41: 171580.9159 | D41: 37637.79479 | E41: 3794971.527 | F41: 3 | G41: 4
A42: 29 | B42: 209218.7107 | C42: 173209.0117 | D42: 36009.69901 | E42: 3621762.515 | F42: 3 | G42: 5
A43: 30 | B43: 209218.7107 | C43: 174852.5561 | D43: 34366.15457 | E43: 3446909.959 | F43: 3 | G43: 6
A44: 31 | B44: 209218.7107 | C44: 176511.6958 | D44: 32707.01487 | E44: 3270398.263 | F44: 3 | G44: 7
A45: 32 | B45: 209218.7107 | C45: 178186.5788 | D45: 31032.13193 | E45: 3092211.685 | F45: 3 | G45: 8
A46: 33 | B46: 209218.7107 | C46: 179877.3543 | D46: 29341.35638 | E46: 2912334.33 | F46: 3 | G46: 9
A47: 34 | B47: 209218.7107 | C47: 181584.1733 | D47: 27634.53742 | E47: 2730750.157 | F47: 3 | G47: 10
A48: 35 | B48: 209218.7107 | C48: 183307.1879 | D48: 25911.5228 | E48: 2547442.969 | F48: 3 | G48: 11
A49: 36 | B49: 209218.7107 | C49: 185046.5519 | D49: 24172.15885 | E49: 2362396.417 | F49: 3 | G49: 12
A50: 37 | B50: 209218.7107 | C50: 186802.4203 | D50: 22416.29043 | E50: 2175593.997 | F50: 4 | G50: 1
A51: 38 | B51: 209218.7107 | C51: 188574.9498 | D51: 20643.76095 | E51: 1987019.047 | F51: 4 | G51: 2
A52: 39 | B52: 209218.7107 | C52: 190364.2984 | D52: 18854.4123 | E52: 1796654.749 | F52: 4 | G52: 3
A53: 40 | B53: 209218.7107 | C53: 192170.6258 | D53: 17048.08489 | E53: 1604484.123 | F53: 4 | G53: 4
A54: 41 | B54: 209218.7107 | C54: 193994.0931 | D54: 15224.61761 | E54: 1410490.03 | F54: 4 | G54: 5
A55: 42 | B55: 209218.7107 | C55: 195834.8629 | D55: 13383.84783 | E55: 1214655.167 | F55: 4 | G55: 6
A56: 43 | B56: 209218.7107 | C56: 197693.0993 | D56: 11525.61137 | E56: 1016962.068 | F56: 4 | G56: 7
A57: 44 | B57: 209218.7107 | C57: 199568.9682 | D57: 9649.742482 | E57: 817393.0994 | F57: 4 | G57: 8
A58: 45 | B58: 209218.7107 | C58: 201462.6368 | D58: 7756.073867 | E58: 615930.4626 | F58: 4 | G58: 9
A59: 46 | B59: 209218.7107 | C59: 203374.2741 | D59: 5844.436622 | E59: 412556.1885 | F59: 4 | G59: 10
A60: 47 | B60: 209218.7107 | C60: 205304.0505 | D60: 3914.660247 | E60: 207252.1381 | F60: 4 | G60: 11
A61: 48 | B61: 209218.7107 | C61: 207252.1381 | D61: 1966.572623 | E61: 0 | F61: 4 | G61: 12
A62: -
A63: -
A64: -
A65: -
A66: -
A67: -
A68: -
A69: -
A70: -
A71: -
A72: -
A73: -
A74: -
A75: -
A76: -
A77: -
A78: -
A79: - | B79: =IF(A79<>"-",C79+D79,"") ->  | C79: =IF(A79<>"-",-PPMT((1+$B$2)^(1/12)-1,A79,$B$4*12,$B$3),"") ->  | D79: =IF(A79<>"-",-IPMT((1+$B$2)^(1/12)-1,A79,$B$4*12,$B$3),"") ->  | E79: =IF(A79<>"-",$B$3+CUMPRINC((1+$B$2)^(1/12)-1,$B$4*12,$B$3,1,A79,0),"") -> 
A80: =IF(AND($B$4<>0,A79<$C$4),A79+1,"-") -> - | F80: =IF(A80<>"-",IF(G79<G80,F79,F79+1),"") ->  | G80: =IF(A80="-","",IF(G79<12,G79+1,1)) -> 
A81: -
A82: -
A83: -
A84: -
A85: -
A86: -
A87: -
A88: -
A89: -
A90: -
A91: -
A92: -
A93: -
A94: -
A95: -
A96: -
A97: -
A98: -
A99: -
A100: -
A101: -
A102: -
A103: -
A104: -
A105: -
A106: -
A107: -
A108: -
A109: -
A110: -
A111: -
A112: -
A113: -
A114: -
A115: -
A116: -
A117: -
A118: -
A119: -
A120: -
A121: -
A122: -
A123: -
A124: -
A125: -
A126: -
A127: -
A128: -
A129: -
A130: -
A131: -
A132: -
A133: -

Sheet investissement réel
B3: Désignation | C3: Quantité | D3: Prix unitaire TTC | E3: Montant Total TTC | F3: Durée de vie (an) | G3: Amortissement annuel
B4: Installation atelier | C4: 1 | D4: 1500000 | E4: =C4*D4 -> 1500000 | F4: 20 | G4: =E4/F4 -> 75000
B5: Construction Bureau | C5: 1 | D5: 500000 | E5: 500000 | F5: 20 | G5: 25000
B6: Construction magasin de vente de pièces détaillées dans l'atelier | C6: 1 | D6: 1500000 | E6: 1500000 | F6: 20 | G6: 75000
B7: Plat pour moteur | C7: 1 | D7: 160000 | E7: 160000 | F7: 15 | G7: 10666.66667
B8: Etau | C8: 1 | D8: 40000 | E8: =C8*D8 -> 40000 | F8: 10 | G8: =E8/F8 -> 4000
B9: Poste de soudure | C9: 1 | D9: 250000 | E9: 250000 | F9: 10 | G9: 25000
B10: Meule | C10: 1 | D10: 40000 | E10: 40000 | F10: 10 | G10: 4000
B11: Perceuse | C11: 1 | D11: =100000 -> 100000 | E11: =C11*D11 -> 100000 | F11: 10 | G11: =E11/F11 -> 10000
B12: Panneaux | C12: 1 | D12: =97987*12 -> 1175844 | E12: =C12*D12 -> 1175844 | F12: =20 -> 20 | G12: 58792.2
B13: Batteries | C13: 1 | D13: =433902*4 -> 1735608 | E13: =C13*D13 -> 1735608 | F13: 7 | G13: 247944
B14: Onduleur | C14: 1 | D14: =2116221 -> 2116221 | E14: 2116221 | F14: 10 | G14: 211622.1
B15: Accessoires | C15: 1 | D15: =7646474-(D12+D13+D14) -> 2618801 | E15: 2618801 | F15: 10 | G15: 261880.1
E16: =C16*D16 -> 0
E17: 0
E18: 0
E19: 0
E20: 0
E21: =C21*D21 -> 0
E22: 0
B23: TOTAL (F CFA) | E23: =SUM(E4:E22) -> 11736474 | G23: =SUM(G4:G22) -> 1008905.067
